fUST/lending_fUST_20250329
["ID","MTS","AMOUNT","RATE_DAILY","PERIOD"]
[356801607,1743225040594,-500.0,0.00024657,2]
[356801608,1743225040604,-500.0,0.00024657,2]
[356801609,1743225040613,-500.0,0.00024657,2]
[356801610,1743225040623,-500.0,0.00024657,2]
[356801611,1743225040633,-531.35907558,0.00024657,2]
[356801612,1743225040642,-1180.78,0.00024657,2]
[356801613,1743225040652,-500.0,0.00024657,2]
[356801614,1743225040661,-500.0,0.00024657,2]
[356801615,1743225040671,-184.83505617,0.00024657,2]
[356801616,1743225040680,-1175.3,0.00024657,2]
[356801617,1743225040689,-245.55242459,0.00024657,2]
[356801618,1743225040699,-590.74842303,0.00024657,2]
[356801619,1743225040709,-500.0,0.00024657,2]
[356801620,1743225040718,-500.0,0.00024657,2]
[356801621,1743225040728,-500.0,0.00024657,2]
[356801622,1743225040737,-1088.88,0.00024657,2]
[356801623,1743225040747,-737.43,0.00024657,2]
[356801625,1743225040756,-539.98,0.00024657,2]
[356801626,1743225040766,-592.48,0.00024657,2]
[356801627,1743225040776,-530.61,0.00024657,2]
[356801628,1743225040785,-1420.7,0.00024657,2]
[356801629,1743225040795,-500.0,0.00024657,2]
[356801630,1743225040804,-740.28,0.00024657,2]
[356801632,1743225040814,-500.0,0.00024657,2]
[356801633,1743225040823,-500.0,0.00024657,2]
[356801634,1743225040833,-552.51,0.00024657,2]
[356801635,1743225040842,-500.0,0.00024657,2]
[356801636,1743225040851,-500.0,0.00024657,2]
[356801637,1743225040862,-1411.9,0.00024657,2]
[356801638,1743225040871,-500.0,0.00024657,2]
[356801639,1743225040880,-501.01858331,0.00024657,2]
[356801640,1743225040889,-151.0,0.00024657,7]
[356801641,1743225040899,-500.0,0.00024657,2]
[356801642,1743225040908,-500.0,0.00024657,2]
[356801643,1743225040918,-815.3,0.00024657,2]
[356801644,1743225040927,-500.0,0.00024657,2]
[356801645,1743225040937,-889.0,0.00024657,2]
[356801646,1743225040949,-524.32,0.00024657,2]
[356801647,1743225040960,-500.0,0.00024657,2]
[356801648,1743225040969,-500.0,0.00024657,2]
[356801649,1743225040979,-319.76526867,0.00024657,2]
[356801650,1743225040989,-500.0,0.00024657,2]
[356801651,1743225040999,-544.01197518,0.00024657,2]
[356801652,1743225041009,-500.0,0.00024657,2]
[356801653,1743225041018,-556.23,0.00024657,2]
[356801654,1743225041029,-500.0,0.00024657,2]
[356801655,1743225041040,-500.0,0.00024657,2]
[356801656,1743225041049,-766.26,0.00024657,2]
[356801657,1743225041059,-500.0,0.00024657,2]
[356801658,1743225041069,-670.36,0.00024657,2]
[356801659,1743225041078,-277.744114,0.00024657,7]
[356801660,1743225041088,-918.24,0.00024657,2]
[356801661,1743225041098,-500.0,0.00024657,2]
[356801662,1743225041107,-500.0,0.00024657,2]
[356801663,1743225041117,-500.0,0.00024657,2]
[356801664,1743225041127,-500.0,0.00024657,2]
[356801665,1743225041136,-609.19569523,0.00024657,2]
[356801666,1743225041146,-524.51,0.00024657,2]
[356801667,1743225041155,-500.0,0.00024657,2]
[356801668,1743225041164,-718.4,0.00024657,2]
[356801669,1743225041174,-805.8,0.00024657,2]
[356801670,1743225041183,-500.0,0.00024657,2]
[356801671,1743225041193,-1999.42,0.00024657,2]
[356801672,1743225041203,-500.0,0.00024657,2]
[356801673,1743225041212,-500.0,0.00024657,2]
[356801675,1743225041222,-507.05,0.00024657,2]
[356801676,1743225041231,-509.14,0.00024657,2]
[356801677,1743225041240,-747.2,0.00024657,2]
[356801678,1743225041250,-657.81,0.00024657,2]
[356801679,1743225041259,-500.0,0.00024657,2]
[356801680,1743225041269,-500.0,0.00024657,2]
[356801681,1743225041279,-898.6,0.00024657,2]
[356801682,1743225041288,-938.68,0.00024657,2]
[356801683,1743225041297,-151.0,0.00024657,7]
[356801684,1743225041306,-500.0,0.00024657,2]
[356801685,1743225041316,-2076.48,0.00024657,2]
[356801686,1743225041326,-151.0,0.00024657,7]
[356801687,1743225041335,-256.256532,0.00024657,7]
[356801688,1743225041345,-533.05,0.00024657,2]
[356801689,1743225041354,-500.0,0.00024657,2]
[356801690,1743225041364,-500.0,0.00024657,2]
[356801691,1743225041373,-500.0,0.00024657,2]
[356801692,1743225041383,-500.0,0.00024657,2]
[356801693,1743225041392,-272.13,0.00024657,2]
[356801694,1743225041402,-500.0,0.00024657,2]
[356801695,1743225041412,-2640.28,0.00024657,2]
[356801696,1743225041421,-500.0,0.00024657,2]
[356801697,1743225041430,-500.0,0.00024657,2]
[356801698,1743225041440,-500.0,0.00024657,2]
[356801699,1743225041451,-500.0,0.00024657,2]
[356801700,1743225041460,-616.04632118,0.00024657,2]
[356801701,1743225041469,-500.0,0.00024657,2]
[356801702,1743225041479,-500.0,0.00024657,2]
[356801703,1743225041489,-922.16,0.00024657,2]
[356801704,1743225041498,-500.0,0.00024657,2]
[356801705,1743225041508,-500.0,0.00024657,2]
[356801706,1743225041517,-500.0,0.00024657,2]
[356801707,1743225041527,-500.0,0.00024657,2]
[356801708,1743225041537,-515.92963794,0.00024657,2]
[356801709,1743225041547,-627.93391476,0.00024657,2]
[356801710,1743225041556,-1448.61,0.00024657,2]
[356801711,1743225041566,-502.38512091,0.00024657,2]
[356801712,1743225041575,-500.0,0.00024657,2]
[356801713,1743225041585,-762.08,0.00024657,2]
[356801714,1743225041594,-391.61400628,0.00024657,2]
[356801715,1743225041603,-877.94,0.00024657,2]
[356801716,1743225041613,-504.53450767,0.00024657,2]
[356801717,1743225041622,-834.4,0.00024657,2]
[356801718,1743225041631,-545.43,0.00024657,2]
[356801719,1743225041640,-500.0,0.00024657,2]
[356801720,1743225041650,-500.0,0.00024657,2]
[356801721,1743225041659,-500.0,0.00024657,2]
[356801722,1743225041668,-500.0,0.00024657,2]
[356801723,1743225041678,-500.0,0.00024657,2]
[356801724,1743225041687,-894.04,0.00024657,2]
[356801725,1743225041697,-183.36806776,0.00024657,2]
[356801726,1743225041706,-1398.45,0.00024657,2]
[356801727,1743225041715,-577.31,0.00024657,2]
[356801728,1743225041725,-614.66,0.00024657,2]
[356801729,1743225041735,-500.0,0.00024657,2]
[356801730,1743225041744,-500.0,0.00024657,2]
[356801731,1743225041754,-731.28,0.00024657,2]
[356801732,1743225041763,-405.56256886,0.00024657,2]
[356801733,1743225041772,-744.52,0.00024657,2]
[356801734,1743225041781,-500.0,0.00024657,2]
[356801735,1743225041790,-500.0,0.00024657,2]
[356801736,1743225041800,-500.0,0.00024657,2]
[356801737,1743225041809,-500.0,0.00024657,2]
[356801738,1743225041819,-715.63,0.00024657,2]
[356801739,1743225041829,-500.0,0.00024657,2]
[356801740,1743225041838,-500.0,0.00024657,2]
[356801741,1743225041848,-500.0,0.00024657,2]
[356801742,1743225041858,-500.0,0.00024657,2]
[356801743,1743225041867,-750.48,0.00024657,2]
[356801744,1743225041876,-1485.07,0.00024657,2]
[356801745,1743225041885,-500.0,0.00024657,2]
[356801746,1743225041895,-253.06157687,0.00024657,2]
[356801747,1743225041904,-527.40985493,0.00024657,2]
[356801748,1743225041913,-500.0,0.00024657,2]
[356801749,1743225041923,-500.0,0.00024657,2]
[356801750,1743225041932,-1019.31,0.00024657,2]
[356801751,1743225041943,-769.86,0.00024657,2]
[356801752,1743225041955,-500.0,0.00024657,2]
[356801753,1743225041964,-500.0,0.00024657,2]
[356801754,1743225041974,-572.76,0.00024657,2]
[356801755,1743225041983,-500.0,0.00024657,2]
[356801756,1743225041995,-500.0,0.00024657,2]
[356801757,1743225042004,-500.0,0.00024657,2]
[356801758,1743225042014,-1479.26,0.00024657,2]
[356801759,1743225042025,-1529.18,0.00024657,2]
[356801760,1743225042034,-500.0,0.00024657,2]
[356801761,1743225042043,-549.92762833,0.00024657,2]
[356801762,1743225042053,-500.0,0.00024657,2]
[356801763,1743225042063,-500.0,0.00024657,2]
[356801764,1743225042073,-859.28,0.00024657,2]
[356801765,1743225042084,-504.15,0.00024657,2]
[356801766,1743225042094,-500.0,0.00024657,2]
[356801767,1743225042105,-2067.48,0.00024657,2]
[356801768,1743225042115,-202.93821054,0.00024657,2]
[356801769,1743225042126,-500.0,0.00024657,2]
[356801770,1743225042135,-500.0,0.00024657,2]
[356801771,1743225042144,-1201.73,0.00024657,2]
[356801772,1743225042154,-500.0,0.00024657,2]
[356801773,1743225042163,-500.0,0.00024657,2]
[356801774,1743225042173,-500.0,0.00024657,2]
[356801775,1743225042182,-500.0,0.00024657,2]
[356801776,1743225042191,-500.0,0.00024657,2]
[356801777,1743225042201,-1351.56,0.00024657,2]
[356801778,1743225042211,-3395.04,0.00024657,2]
[356801779,1743225042221,-500.0,0.00024657,2]
[356801780,1743225042230,-500.0,0.00024657,2]
[356801781,1743225042240,-780.81,0.00024657,2]
[356801782,1743225042250,-500.0,0.00024657,2]
[356801783,1743225042260,-500.0,0.00024657,2]
[356801784,1743225042269,-500.0,0.00024657,2]
[356801785,1743225042279,-760.64,0.00024657,2]
[356801786,1743225042289,-500.0,0.00024657,2]
[356801787,1743225042299,-954.34,0.00024657,2]
[356801788,1743225042309,-1407.35,0.00024657,2]
[356801789,1743225042319,-537.03828472,0.00024657,2]
[356801790,1743225042329,-333.35918418,0.00024657,2]
[356801791,1743225042339,-500.0,0.00024657,2]
[356801792,1743225042348,-653.96,0.00024657,2]
[356801793,1743225042358,-1680.51,0.00024657,2]
[356801794,1743225042368,-500.0,0.00024657,2]
[356801795,1743225042377,-335.21412301,0.00024657,2]
[356801796,1743225042809,-164.78587699,0.00024657,2]
[356801797,1743225042819,-3173.86,0.00024657,2]
[356801798,1743225042829,-1586.52,0.00024657,2]
[356801799,1743225042839,-500.3,0.00024657,2]
[356801800,1743225042848,-2477.82,0.00024657,2]
[356801801,1743225042858,-3338.9,0.00024657,2]
[356801802,1743225042867,-507.44633644,0.00024657,2]
[356801803,1743225042877,-500.0,0.00024657,2]
[356801804,1743225042886,-500.0,0.00024657,2]
[356801805,1743225042895,-1274.22,0.00024657,2]
[356801806,1743225042905,-842.07,0.00024657,2]
[356801807,1743225042914,-500.0,0.00024657,2]
[356801808,1743225042924,-244.05212715,0.00024657,2]
[356801809,1743225042933,-500.0,0.00024657,2]
[356801810,1743225042943,-500.0,0.00024657,2]
[356801811,1743225042957,-500.0,0.00024657,2]
[356801812,1743225042967,-1631.17,0.00024657,2]
[356801813,1743225042976,-3662.73,0.00024657,2]
[356801814,1743225042986,-532.93046975,0.00024657,2]
[356801815,1743225042998,-500.0,0.00024657,2]
[356801816,1743225043008,-912.81,0.00024657,2]
[356801817,1743225043018,-565.23,0.00024657,2]
[356801818,1743225043030,-500.0,0.00024657,2]
[356801819,1743225043039,-1851.85,0.00024657,2]
[356801820,1743225043049,-500.0,0.00024657,2]
[356801821,1743225043059,-500.0,0.00024657,2]
[356801822,1743225043069,-500.0,0.00024657,2]
[356801823,1743225043078,-500.0,0.00024657,2]
[356801824,1743225043088,-695.5,0.00024657,2]
[356801825,1743225043097,-500.0,0.00024657,2]
[356801826,1743225043107,-500.0,0.00024657,2]
[356801827,1743225043116,-500.0,0.00024657,2]
[356801828,1743225043126,-500.0,0.00024657,2]
[356801829,1743225043136,-500.0,0.00024657,2]
[356801830,1743225043146,-500.0,0.00024657,2]
[356801831,1743225043156,-500.0,0.00024657,2]
[356801832,1743225043166,-500.0,0.00024657,2]
[356801833,1743225043175,-677.96,0.00024657,2]
[356801834,1743225043184,-532.77,0.00024657,2]
[356801835,1743225043194,-593.97,0.00024657,2]
[356801836,1743225043204,-500.0,0.00024657,2]
[356801838,1743225043213,-1197.66,0.00024657,2]
[356801839,1743225043223,-500.0,0.00024657,2]
[356801840,1743225043233,-1791.36,0.00024657,2]
[356801841,1743225043243,-500.0,0.00024657,2]
[356801842,1743225043252,-1288.69,0.00024657,2]
[356801843,1743225043263,-500.0,0.00024657,2]
[356801844,1743225043273,-667.02,0.00024657,2]
[356801845,1743225043282,-500.0,0.00024657,2]
[356801846,1743225043292,-858.67,0.00024657,2]
[356801847,1743225043302,-500.0,0.00024657,2]
[356801848,1743225043312,-3477.52,0.00024657,2]
[356801849,1743225043321,-500.0,0.00024657,2]
[356801850,1743225043331,-500.0,0.00024657,2]
[356801851,1743225043341,-500.0,0.00024657,2]
[356801852,1743225043351,-1883.71,0.00024657,2]
[356801853,1743225043360,-500.0,0.00024657,2]
[356801854,1743225043370,-752.08,0.00024657,2]
[356801855,1743225043380,-694.17,0.00024657,2]
[356801856,1743225043390,-737.49,0.00024657,2]
[356801857,1743225043400,-550.0,0.00024657,2]
[356801858,1743225043409,-500.0,0.00024657,2]
[356801859,1743225043419,-500.0,0.00024657,2]
[356801861,1743225043429,-1234.76,0.00024657,2]
[356801863,1743225043438,-613.75,0.00024657,2]
[356801865,1743225043448,-546.84366385,0.00024657,2]
[356801867,1743225043458,-611.14106549,0.00024657,2]
[356801869,1743225043467,-500.0,0.00024657,2]
[356801871,1743225043477,-500.0,0.00024657,2]
[356801873,1743225043487,-500.0,0.00024657,2]
[356801875,1743225043496,-1614.96,0.00024657,2]
[356801877,1743225043506,-500.0,0.00024657,2]
[356801879,1743225043516,-518.43,0.00024657,2]
[356801881,1743225043525,-1341.6,0.00024657,2]
[356801883,1743225043535,-283.38404974,0.00024657,2]
[356801885,1743225043545,-731.64,0.00024657,2]
[356801887,1743225043554,-500.0,0.00024657,2]
[356801889,1743225043566,-500.0,0.00024657,2]
[356801891,1743225043576,-2420.66,0.00024657,2]
[356801893,1743225043585,-1051.99,0.00024657,2]
[356801895,1743225043595,-500.0,0.00024657,2]
[356801897,1743225043604,-500.0,0.00024657,2]
[356801899,1743225043614,-500.0,0.00024657,2]
[356801901,1743225043624,-504.19252329,0.00024657,2]
[356801903,1743225043633,-1681.39925186,0.00024657,2]
[356801906,1743225043648,-5396.99074814,0.00024657,2]
[356801908,1743225043658,-500.0,0.00024657,2]
[356801910,1743225043667,-500.0,0.00024657,2]
[356801912,1743225043677,-286.81677406,0.00024657,2]
[356801914,1743225043687,-1069.78,0.00024657,2]
[356801916,1743225043696,-617.29,0.00024657,2]
[356801918,1743225043706,-803.73,0.00024657,2]
[356801920,1743225043715,-568.0,0.00024657,2]
[356801922,1743225043725,-500.0,0.00024657,2]
[356801924,1743225043735,-500.0,0.00024657,2]
[356801926,1743225043744,-745.54,0.00024657,2]
[356801928,1743225043754,-500.0,0.00024657,2]
[356801930,1743225043764,-500.0,0.00024657,2]
[356801932,1743225043774,-340.52050501,0.00024657,2]
[356801934,1743225043784,-500.0,0.00024657,2]
[356801936,1743225043793,-649.66,0.00024657,2]
[356801938,1743225043804,-479.03652466,0.00024657,2]
[356801940,1743225043816,-20.96347534,0.00024657,2]
[356801942,1743225043826,-610.14,0.00024657,2]
[356801944,1743225043836,-538.7,0.00024657,2]
[356801946,1743225043845,-5249.57,0.00024657,2]
[356801948,1743225043855,-2541.41,0.00024657,2]
[356801951,1743225043865,-3775.67952492,0.00024657,2]
[356802017,1743225044416,-1005.588778,0.000246,2]
[356802019,1743225044427,-3436.5978328,0.00024657,2]
[356802021,1743225044439,-597.95323649,0.00024657,2]
[356802069,1743225045000,-448.46940579,0.00024657,2]
[356802071,1743225045010,-461.05509686,0.00024657,2]
[356802074,1743225045025,-433.11490314,0.00024657,2]
[356802075,1743225045035,-4089.9177055,0.00024657,2]
[356802124,1743225046613,-1008.5022945,0.00024657,2]
[356802125,1743225046622,-203.23925255,0.00024657,2]
[356802126,1743225046634,-296.76074745,0.00024657,2]
[356802127,1743225046644,-793.99,0.00024657,2]
[356802128,1743225046653,-555.9,0.00024657,2]
[356802129,1743225046663,-648.96,0.00024657,2]
[356802130,1743225046672,-1447.97,0.00024657,2]
[356802131,1743225046682,-500.0,0.00024657,2]
[356802132,1743225046691,-1002.99,0.00024657,2]
[356802133,1743225046700,-500.0,0.00024657,2]
[356802134,1743225046710,-500.0,0.00024657,2]
[356802135,1743225046720,-2087.32,0.00024657,2]
[356802136,1743225046730,-500.0,0.00024657,2]
[356802137,1743225046739,-1468.22,0.00024657,2]
[356802138,1743225046749,-587.61586542,0.00024657,2]
[356802139,1743225046759,-289.73275431,0.00024657,2]
[356802140,1743225046768,-500.0,0.00024657,2]
[356802141,1743225046777,-531.22309995,0.00024657,2]
[356802152,1743225790279,176.892974,0.00013699,2]
[356802154,1743225935137,-251.17557303,0.00022975,2]
[356802156,1743226031099,-1808.82442697,0.00022975,2]
[356802157,1743226031122,-5000.0,0.00022976,2]
[356802158,1743226031143,-22.53166457,0.000232,2]
[356802176,1743226147084,-627.46833543,0.000232,2]
[356802177,1743226147106,-300.0,0.00023344,2]
[356802178,1743226147129,-570.80975202,0.00023345,2]
[356802179,1743226147154,-500.0,0.00023345,2]
[356802180,1743226147177,-500.0,0.00023345,2]
[356802181,1743226147201,-500.0,0.00023345,2]
[356802182,1743226147224,-500.0,0.00023345,2]
[356802183,1743226147247,-250.0,0.00023345,2]
[356802184,1743226147269,-500.0,0.00023345,2]
[356802185,1743226147292,-500.0,0.00023345,2]
[356802186,1743226147314,-500.0,0.00023345,2]
[356802187,1743226147336,-500.0,0.00023345,2]
[356802188,1743226147360,-500.0,0.00023345,2]
[356802189,1743226147382,-500.0,0.00023345,2]
[356802190,1743226147404,-500.0,0.00023345,2]
[356802191,1743226147427,-500.0,0.00023345,2]
[356802192,1743226147453,-500.0,0.00023345,2]
[356802193,1743226147476,-500.0,0.00023345,2]
[356802194,1743226147501,-500.0,0.00023345,2]
[356802195,1743226147525,-500.0,0.00023345,2]
[356802196,1743226147548,-500.0,0.00023345,2]
[356802197,1743226147575,-500.0,0.00023345,2]
[356802198,1743226147599,-500.0,0.00023345,2]
[356802199,1743226147623,-500.0,0.00023345,2]
[356802200,1743226147648,-500.0,0.00023345,2]
[356802201,1743226147672,-249.42232319,0.00023345,2]
[356802202,1743226147696,-500.0,0.00023345,2]
[356802203,1743226147719,-24900.0,0.00023346,2]
[356802204,1743226147740,-1444.2326183,0.00023452,2]
[356802205,1743226150144,-669.87792017,0.00023452,2]
[356802206,1743226150168,-211.93587983,0.00023552,2]
[356802227,1743226232042,-210.3095848,0.00023917,2]
[356802228,1743226232052,-293.51758944,0.00024001,2]
[356802243,1743226237778,-5000.0,0.00023245,2]
[356802244,1743226237789,-1820.59294896,0.00024001,2]
[356802245,1743226237799,-429.83106471,0.00024484,2]
[356802246,1743226237808,-2114.1105384,0.00024551,2]
[356802247,1743226237818,-434.38766986,0.00024556,2]
[356802253,1743226238551,-65.61233014,0.00024556,2]
[356802254,1743226238561,-277.71359147,0.00024556,2]
[356802255,1743226238570,-500.0,0.00024556,2]
[356802256,1743226238580,-370000.0,0.00024557,2]
[356802257,1743226238589,-151.0,0.000246,6]
[356802258,1743226238599,-1161.27418239,0.00024618,2]
[356802259,1743226238610,-293.34199063,0.00024642,2]
[356802260,1743226238619,-1200.0,0.00024642,2]
[356802261,1743226238628,-300.0,0.00024642,2]
[356802262,1743226238638,-178.46925167,0.00024651,2]
[356802263,1743226238647,-2864.48424473,0.00024657,3]
[356802264,1743226238657,-860.24702466,0.00024657,3]
[356802265,1743226238666,-177.54083388,0.00024657,2]
[356802266,1743226238676,-500.0,0.00024657,2]
[356802267,1743226238685,-191.74081609,0.00024657,2]
[356802268,1743226238694,-500.0,0.00024657,2]
[356802269,1743226238705,-500.0,0.00024657,2]
[356802270,1743226238714,-500.0,0.00024657,2]
[356802271,1743226238724,-500.0,0.00024657,2]
[356802272,1743226238734,-500.0,0.00024657,2]
[356802273,1743226238743,-500.0,0.00024657,2]
[356802274,1743226238754,-500.0,0.00024657,2]
[356802275,1743226238763,-181.62774334,0.00024657,2]
[356802276,1743226238773,-524.14763847,0.00024657,2]
[356802277,1743226238783,-500.0,0.00024657,2]
[356802278,1743226238792,-500.0,0.00024657,2]
[356802279,1743226238802,-500.0,0.00024657,2]
[356802280,1743226238811,-500.0,0.00024657,2]
[356802281,1743226238820,-509.18422333,0.00024657,2]
[356802282,1743226238829,-500.0,0.00024657,2]
[356802283,1743226238839,-500.0,0.00024657,2]
[356802284,1743226238849,-500.0,0.00024657,2]
[356802285,1743226238858,-500.0,0.00024657,2]
[356802286,1743226238868,-468.19153132,0.00024657,2]
[356802287,1743226238878,-706.71,0.00024657,2]
[356802288,1743226238887,-1425.38,0.00024657,2]
[356802289,1743226238896,-500.0,0.00024657,2]
[356802290,1743226238906,-529.5,0.00024657,2]
[356802291,1743226238915,-500.0,0.00024657,2]
[356802292,1743226238924,-500.0,0.00024657,2]
[356802293,1743226238934,-500.0,0.00024657,2]
[356802294,1743226238944,-500.0,0.00024657,2]
[356802295,1743226238953,-500.0,0.00024657,2]
[356802296,1743226238963,-565.26092329,0.00024657,2]
[356802297,1743226238972,-500.0,0.00024657,2]
[356802298,1743226238982,-502.01204866,0.00024657,2]
[356802299,1743226239168,-500.0,0.00024657,2]
[356802300,1743226239195,-597.15,0.00024657,2]
[356802301,1743226239206,-500.0,0.00024657,2]
[356802302,1743226239216,-502.47,0.00024657,2]
[356802303,1743226239225,-500.0,0.00024657,2]
[356802304,1743226239235,-500.0,0.00024657,2]
[356802305,1743226239245,-500.0,0.00024657,2]
[356802306,1743226239254,-500.0,0.00024657,2]
[356802307,1743226239264,-500.0,0.00024657,2]
[356802308,1743226239273,-500.0,0.00024657,2]
[356802309,1743226239283,-817.72,0.00024657,2]
[356802311,1743226239293,-500.0,0.00024657,2]
[356802312,1743226239302,-772.23,0.00024657,2]
[356802313,1743226239312,-500.0,0.00024657,2]
[356802314,1743226239322,-355.8981576,0.00024657,2]
[356802315,1743226239331,-500.0,0.00024657,2]
[356802316,1743226239340,-500.0,0.00024657,2]
[356802317,1743226239350,-771.76,0.00024657,2]
[356802318,1743226239360,-559.15,0.00024657,2]
[356802319,1743226239369,-851.96,0.00024657,2]
[356802320,1743226239379,-651.24,0.00024657,2]
[356802321,1743226239388,-500.0,0.00024657,2]
[356802322,1743226239399,-500.0,0.00024657,2]
[356802323,1743226239409,-527.26,0.00024657,2]
[356802324,1743226239418,-500.0,0.00024657,2]
[356802325,1743226239428,-536.88,0.00024657,2]
[356802326,1743226239437,-500.0,0.00024657,2]
[356802327,1743226239446,-500.0,0.00024657,2]
[356802328,1743226239457,-688.47,0.00024657,2]
[356802329,1743226239467,-500.0,0.00024657,2]
[356802330,1743226239479,-500.0,0.00024657,2]
[356802331,1743226239488,-500.0,0.00024657,2]
[356802333,1743226239498,-943.6,0.00024657,2]
[356802334,1743226239507,-500.0,0.00024657,2]
[356802335,1743226239519,-500.0,0.00024657,2]
[356802336,1743226239528,-500.0,0.00024657,2]
[356802337,1743226239537,-500.0,0.00024657,2]
[356802338,1743226239548,-500.0,0.00024657,2]
[356802339,1743226239558,-548.64,0.00024657,2]
[356802340,1743226239567,-500.0,0.00024657,2]
[356802341,1743226239576,-500.0,0.00024657,2]
[356802342,1743226239586,-926.99,0.00024657,2]
[356802343,1743226239596,-580.34,0.00024657,2]
[356802344,1743226239605,-500.0,0.00024657,2]
[356802345,1743226239616,-500.0,0.00024657,2]
[356802346,1743226239625,-273.56,0.00024657,2]
[356802347,1743226239636,-500.0,0.00024657,2]
[356802348,1743226239646,-500.0,0.00024657,2]
[356802349,1743226239655,-500.0,0.00024657,2]
[356802351,1743226239665,-500.0,0.00024657,2]
[356802352,1743226239674,-501.8754535,0.00024657,2]
[356802353,1743226239683,-500.0,0.00024657,2]
[356802354,1743226239693,-500.0,0.00024657,2]
[356802355,1743226239701,-281.6807132,0.00024657,2]
[356802356,1743226239710,-545.45455554,0.00024657,2]
[356802357,1743226239719,-838.85,0.00024657,2]
[356802359,1743226239728,-500.0,0.00024657,2]
[356802360,1743226239738,-500.0,0.00024657,2]
[356802361,1743226239747,-507.56010992,0.00024657,2]
[356802362,1743226239757,-500.0,0.00024657,2]
[356802363,1743226239766,-737.78,0.00024657,2]
[356802364,1743226239776,-500.0,0.00024657,2]
[356802365,1743226239786,-575.77,0.00024657,2]
[356802366,1743226239795,-500.0,0.00024657,2]
[356802367,1743226239805,-168.69076597,0.00024657,2]
[356802368,1743226239814,-500.0,0.00024657,2]
[356802369,1743226239824,-1340.18,0.00024657,2]
[356802370,1743226239834,-500.0,0.00024657,2]
[356802371,1743226239844,-500.0,0.00024657,2]
[356802372,1743226239854,-500.0,0.00024657,2]
[356802373,1743226239863,-500.0,0.00024657,2]
[356802374,1743226239873,-1981.33,0.00024657,2]
[356802375,1743226239883,-500.0,0.00024657,2]
[356802376,1743226239893,-500.0,0.00024657,2]
[356802377,1743226239902,-500.0,0.00024657,2]
[356802378,1743226239911,-500.0,0.00024657,2]
[356802379,1743226239921,-537.91616719,0.00024657,2]
[356802380,1743226239930,-500.0,0.00024657,2]
[356802381,1743226239940,-784.9,0.00024657,2]
[356802382,1743226239949,-500.0,0.00024657,2]
[356802383,1743226239959,-500.0,0.00024657,2]
[356802384,1743226239968,-695.79,0.00024657,2]
[356802385,1743226239978,-500.0,0.00024657,2]
[356802386,1743226239987,-955.04,0.00024657,2]
[356802387,1743226239996,-500.0,0.00024657,2]
[356802388,1743226240006,-500.0,0.00024657,2]
[356802389,1743226240016,-338.54598569,0.00024657,2]
[356802390,1743226240026,-823.48,0.00024657,2]
[356802391,1743226240035,-557.45379724,0.00024657,2]
[356802392,1743226240045,-500.0,0.00024657,2]
[356802393,1743226240054,-1151.66,0.00024657,2]
[356802394,1743226240064,-500.0,0.00024657,2]